{"text_format":"1","workbook":"xlsx","n_sheets":4,"sheets":["Standing Data","Financial Data","lists","results"],"not_rendered":{"charts":0,"images":0,"macros":1,"external_links":0,"defined_names":119,"comments":2,"pivot_tables":0},"unopened":[],"bounds":{"document_bytes":16777216,"sheet_cells":100000,"rows_first":2000,"rows_last":500,"rows_between":2000,"halvings":0,"cell_chars":16384,"cell_head_chars":4096},"cells_cut":0,"cells_raw":0,"read":"whole","date_system":"1900"}

{"sheet":"Standing Data","index":0,"n_rows":123,"n_cols":9,"rows_kept":123,"cut":false,"hidden":false,"merged":[[0,0,0,6]]}
["The Mutual Funds (Annual Returns) Regulations"]
["For use in Return FAR-016-22-03 (T001)",{"$f":"ValidationErrorCombined","v":"THE FORM IS INCOMPLETE. PLEASE COMPLETE ALL HIGHLIGHTED (YELLOW) CELLS."}]
["1. Identification","",""]
["Fund Name",1.1000000000000001]
["CIMA Certificate Number","1.2",null,{"$f":"IF(ISBLANK(C5),\"\",IF(OR(NOT(ISNUMBER(C5)),C5<0),\"Enter positive number only\",\"\"))","v":""}]
["Legal Entity Identifier (if applicable)","1.2.1"]
["Operating Structure","1.3"]
["Is this report for a Master fund, Regulated Feeder fund or Not applicable?","1.3.1"]
["Master Fund Information","","",""]
["Number of Feeder Funds","1.3.2",null,{"$f":"V1.3.2","v":""}]
["Are there direct investors into the Master Fund","1.3.3"]
["Please enter Feeder Fund Information in table below:"]
[]
[null,"1.3.4 Name of Feeder Fund","1.3.5 Country Of Domicile","1.3.6 Name of Regulator\n(if applicable)","1.3.7 Country of Regulator\n(if applicable)","1.3.8 CIMA Certificate Number\n(if applicable)","1.3.9 Legal Entity Identifier\n(if applicable)"]
["___Multiple_Row_Start___","___Multiple_Row_Start___","___Multiple_Row_Start___","___Multiple_Row_Start___","___Multiple_Row_Start___","___Multiple_Row_Start___","___Multiple_Row_Start___","___Multiple_Row_Start___"]
["1",null,null,null,null,null,null,"Delete Row"]
["___Multiple_Row___","___Multiple_Row___","___Multiple_Row___","___Multiple_Row___","___Multiple_Row___","___Multiple_Row___","___Multiple_Row___","___Multiple_Row___"]
["sequence","value","value","value","value","value","value"]
[2,null,null,null,null,null,null,"Delete Row"]
["Add Row"]
[]
["Feeder Fund Information","",""]
["Name of Master Fund","1.3.10"]
["CIMA Certificate Number of Master Fund (if applicable)","1.3.11"]
["Legal Entity Identifier of Master Fund (if applicable)","1.3.12"]
["Intentionally left blank","1.3.13"]
["Intentionally left blank","1.3.14"]
["Intentionally left blank","1.3.15"]
["Multi-Fund","",""]
["Number of Sub-Funds/Portfolios in Fund","1.3.16",null,{"$f":"V1.3.16","v":""}]
["Number of Sub-Funds/Portfolios included in this return","1.3.17",null,{"$f":"V1.3.17","v":""}]
[]
["1.3.18","Names of Sub-Funds/Portfolios in this return","Included in this return"]
["___Multiple_Row_Start___","___Multiple_Row_Start___","___Multiple_Row_Start___",null,"___Multiple_Row_Start___","___Multiple_Row_Start___","___Multiple_Row_Start___","___Multiple_Row_Start___","___Multiple_Row_Start___"]
[1,null,null,"Delete Row"]
["___Multiple_Row___","___Multiple_Row___","___Multiple_Row___","___Multiple_Row___"]
["sequence","value","value"]
[2,null,null,"Delete Row"]
["Add Row"]
[]
["2. General Information","","",""]
["2.1 Fund Details","","",""]
["Reporting Currency","2.1.0"]
["Investment Strategy","2.1.1"]
["Investment Strategy Details","2.1.2"]
["Stock Exchange","2.1.3"]
["Accounting Standards","2.1.4"]
["Auditing Standards","2.1.5"]
["Minimum Subscription Amount (USD)","2.1.6"]
["Legal Structure","2.1.7"]
[]
["2.2 Fund Operators","","","",null,""]
["","Type","ID","First Name / Entity Name","Last Name","Email Address"]
["___Multiple_Row_Start___","___Multiple_Row_Start___","___Multiple_Row_Start___","___Multiple_Row_Start___","___Multiple_Row_Start___","___Multiple_Row_Start___","___Multiple_Row_Start___","___Multiple_Row_Start___"]
["1",null,null,null,null,null,"Delete Row"]
["___Multiple_Row___","___Multiple_Row___","___Multiple_Row___","___Multiple_Row___","___Multiple_Row___","___Multiple_Row___","___Multiple_Row___"]
["sequence","value","value","value","value","value"]
[2,null,null,null,null,null,"Delete Row"]
["Add Row"]
[]
["2.3   Investment Manager","","",""]
["Name of Investment Manager contracted","2.3.1"]
["Legal Entity Identifier (if applicable)","2.3.2"]
["Jurisdiction of Investment Manager contracted","2.3.3"]
["Name of Regulator (if applicable)","2.3.4"]
["Country of Regulator (if applicable)","2.3.5"]
["Name of Investment Manager sub-delegated (if applicable)","2.3.6"]
["Jurisdiction of Investment Manager sub-delegated (if applicable)","2.3.7"]
["2.4 Fund Administrators","","",""]
["Name of NAV Calculation Agent contracted","2.4.1"]
["Jurisdiction of NAV Calculation Agent contracted","2.4.2"]
["Name of NAV Calculation Agent Sub-Delegated (if applicable)","2.4.3"]
["Jurisdiction of NAV Calculation Agent Sub-Delegated (if applicable)","2.4.4"]
["Name of the RTA Agent contracted","2.4.5"]
["Jurisdiction of RTA Agent contracted","2.4.6"]
["Name of RTA Agent Sub-Delegated (if applicable)","2.4.7"]
["Jurisdiction of RTA Agent Sub-Delegated (if applicable)","2.4.8"]
["2.5 Registered Office","","",""]
["Name of Registered Office","2.5.1",null,""]
["2.6 Primary Cayman Islands Legal Counsel","","",""]
["Name of Cayman Islands Legal Counsel","2.6.1",null,""]
["Name of Partner (or Other Legal Counsel)","2.6.2"]
["2.7 Primary Onshore Legal Counsel","","",""]
["Name of Onshore Legal Counsel (if applicable)","2.7.1"]
["Name of Partner (if applicable)","2.7.2"]
["Country of Onshore Legal Counsel (if applicable)","2.7.3"]
["2.8 Auditor","",null,""]
["Name of Cayman Islands auditor","2.8.1"]
["Audit Opinion","2.8.2"]
["Has the current Auditor resigned or indicated that it will not perform the audit for the next year?","2.8.3"]
["2.9 Primary Custodian","","",""]
["Name of Custodian contracted","2.9.1"]
["Jurisdiction of Custodian contracted","2.9.2"]
["Name of Regulator of Custodian (if applicable)","2.9.3"]
["Country of Regulator of Custodian (if applicable)","2.9.4"]
["Name of Custodian sub-delegated (if applicable)","2.9.5"]
["Jurisdiction of Custodian sub-delegated (if applicable)","2.9.6"]
["3. Operating Information","","",""]
["Is trading of the equity interests suspended?","3.1"]
["Have all or substantially all the participating equity interests been redeemed?","3.2"]
["Were there any regulatory investigations against the fund during the filing period?","3.3"]
["Date of most recent Offering Document","3.4",null,{"$f":"IF(OR(NOT(ISNUMBER(DATE(YEAR(C102), MONTH(C102), DAY(C102)))),C102>TODAY()),\"Error: past date required\",\"Correct date format to be used is “dd-MMM-yyyy” (eg. 06-May-2015)\")","v":"Correct date format to be used is “dd-MMM-yyyy” (eg. 06-May-2015)"}]
["Has the decision been made to terminate the fund?","3.5"]
["Has the fund side-pocketed investments during the filing period?","3.6"]
["Has the fund implemented a gate on redemptions during the filing period?","3.7"]
["How many board meetings were held during the year (or period)?","3.8",null,{"$f":"IF(ISBLANK(C106),\"\",IF(NOT(ISNUMBER(C106)),\"Error: Enter number only\",\"\"))","v":""}]
[]
["4. Legal Holders of Fund","",""]
["Investors by Country if 10% or Greater of Total","",""]
["","Country","Percentage"]
["___Multiple_Row_Start___","___Multiple_Row_Start___","___Multiple_Row_Start___","___Multiple_Row_Start___","___Multiple_Row_Start___","___Multiple_Row_Start___","___Multiple_Row_Start___"]
["1",null,null,"Delete Row"]
["___Multiple_Row___","___Multiple_Row___","___Multiple_Row___","___Multiple_Row___"]
["sequence","value","value"]
[2,null,null,"Delete Row"]
["Add Row"]
[null,null,null,{"$f":"SUM(C112:C116)","v":0},"Percentage Total"]
["5. Intentionally left blank",null,null,{"$f":"IF(D117>100,\"Cannot exceed 100\",\"\")","v":""}]
[]
["6. Intentionally left blank"]
[]
[null,{"$f":"ValidationErrorCombined","v":"THE FORM IS INCOMPLETE. PLEASE COMPLETE ALL HIGHLIGHTED (YELLOW) CELLS."}]
[null,{"$f":"IF(OR(ISBLANK(Q1.1),ISBLANK(Q1.2),ISBLANK(Q1.3),ISBLANK(Q1.3.1),ISBLANK(Q2.1.0),ISBLANK(Q2.1.1),AND(LEFT(Q2.1.1,5)=\"Other\",ISBLANK(Q2.1.2)),ISBLANK(Q2.1.3),ISBLANK(Q2.1.4),ISBLANK(Q2.1.5),ISBLANK(Q2.1.6),ISBLANK(Q2.1.7),ISBLANK(D55),ISBLANK(Q2.3.1),ISBLANK(Q2.3.3),ISBLANK(Q2.4.1),ISBLANK(Q2.4.2),ISBLANK(Q2.4.5),ISBLANK(Q2.4.6),ISBLANK(Q2.5.1),ISBLANK(Q2.6.1),ISBLANK(Q2.6.2),NOT(OR(AND(ISBLANK(Q2.7.1),ISBLANK(Q2.7.2),ISBLANK(Q2.7.3)),NOT(OR(ISBLANK(Q2.7.1),ISBLANK(Q2.7.2),ISBLANK(Q2.7.3))))),ISBLANK(Q2.8.1),ISBLANK(Q2.8.2),ISBLANK(Q2.8.3),ISBLANK(Q2.9.1),ISBLANK(Q2.9.2),ISBLANK(Q3.1),ISBLANK(Q3.2),ISBLANK(Q3.3),ISBLANK(Q3.4),ISBLANK(Q3.5),ISBLANK(Q3.6),ISBLANK(Q3.7),ISBLANK(Q3.8),AND(Q1.3.1=\"Feeder Fund\", ISBLANK(Q1.3.10)),AND(Q1.3.1=\"Master Fund\", OR(ISBLANK(Q1.3.2), ISBLANK(Q1.3.3), ISBLANK(B16), ISBLANK(C16))),AND(Q1.3=\"Multi-Fund\", OR(ISBLANK(Q1.3.16),ISBLANK(Q1.3.17))), MsgFeederFunds=\"Error: check rows\", MsgSubFunds=\"Error: check rows\"),\"THE FORM IS INCOMPLETE. PLEASE COMPLETE ALL HIGHLIGHTED (YELLOW) CELLS.\",\"READY TO SUBMIT.\")","v":"THE FORM IS INCOMPLETE. PLEASE COMPLETE ALL HIGHLIGHTED (YELLOW) CELLS."}]

{"sheet":"Financial Data","index":1,"n_rows":46,"n_cols":10,"rows_kept":46,"cut":false,"hidden":false,"merged":[[0,0,0,6]]}
["Summary Financial Information"]
["For use in Return FAR-016-22-03 (T001)",{"$f":"ValidationErrorCombined","v":"THE FORM IS INCOMPLETE. PLEASE COMPLETE ALL HIGHLIGHTED (YELLOW) CELLS."}]
["7. Reporting Period","","",{"$f":"IF(OR(Q7.2<Q7.1,Q7.2>=NOW()),\"Check Dates\",IF(Q7.1<DATE(2014,1,1),\"Check Dates\",\"\"))","v":"Check Dates"}]
["From","F07.1",null,"Correct date format to be used is “dd-MMM-yyyy” (eg. 06-May-2015)"]
["To","F07.2",null,"Correct date format to be used is “dd-MMM-yyyy” (eg. 06-May-2015)"]
["8. Summary Statement of Financial Position","",null,""]
["Total Assets (+)","F08.1",null,"Total Assets are entered as a positive value. If none, enter \"0\"."]
["Beginning Net Asset Value (+)","F08.2",null,"Beginning Net Asset Value is entered as a positive value. If none, enter \"0\"."]
["Total Subscriptions (+)","F08.3",null,"Subscriptions are entered as a positive value. If none, enter \"0\"."]
["Total Redemptions (-)","F08.4",null,"Redemptions are entered as a negative value. If none, enter \"0\"."]
["Total Dividends/Distributions (-)","F08.5",null,"Dividends/Distributions are entered as a negative value. If none, enter \"0\"."]
["Net Income/Loss (+/-)","F08.6",null,"Net Income is entered as a positive value. Net loss is entered as a negative value. If none, enter \"0\"."]
["Ending Net Asset Value","F08.7",null,{"$f":"C8+C9+C10+C11+C12","v":0},"F08.7 Ending Net Asset Value =  F08.2 + F08.3 + F08.4 + F08.5 + F08.6"]
["9. Asset Allocation","",null,""]
["Investment in Master Fund (+)","F09.1",null,"Assets are entered as a positive value. If none, enter “0”."]
["Long position equities (assets) (+)","F09.2",null,"Assets are entered as a positive value. If none, enter “0”."]
["Short position equities (liabilities) (-)","F09.3",null,"Liabilities are entered as a negative value.  If none, enter “0”."]
["Debt instruments (assets) (+)","F09.4",null,"Assets are entered as a positive value.  If none, enter “0”."]
["Short position debt instruments (liabilities) (-)","F09.5",null,"Liabilities are entered as a negative value.  If none, enter “0”."]
["Other funds (+)","F09.6",null,"Assets are entered as a positive value.  If none, enter “0”."]
["Money Market instruments (+)","F09.7",null,"Assets are entered as a positive value.  If none, enter “0”."]
["Derivatives (assets) (+)","F09.8",null,"Assets are entered as a positive value.  If none, enter “0”."]
["Derivatives (liabilities) (-)","F09.9",null,"Liabilities are entered as a negative value.  If none, enter “0”."]
["Other investments (assets) (+)","F09.10",null,"Assets are entered as a positive value.  If none, enter “0”."]
["Other investments (liabilities) (-)","F09.11",null,"Liabilities are entered as a negative value.  If none, enter “0”."]
["10. Intentionally left blank"]
["11. Leverage (%)","F11",null,{"$f":"IF(D13<>0,SUM(ABS(C15),ABS(C16),ABS(C17),ABS(C18),ABS(C19),ABS(C20),ABS(C21),ABS(C22),ABS(C23),ABS(C24),ABS(C25))/D13,0)","v":0}," (Absolute value of all positions)/Ending Net Asset Value i.e. (F09.1+F09.2+F09.3+F09.4+F09.5+F09.6+F09.7+F09.8+F09.9+F09.10+F09.11) / F08.7"]
[]
["","12. Allocation of  Equity & Debt Securities and Master Funds by Country"]
["","F12.1 Country",null,"F12.2 Equity Securities & Short-Positions","F12.3 Long-term Debt Securities & Short-Positions","F12.4 Short-term Debt Securities & Short-Positions","F12.5 Investment in Master Fund","Total"]
["___Multiple_Row_Start___","___Multiple_Row_Start___","___Multiple_Row_Start___","___Multiple_Row_Start___","___Multiple_Row_Start___","___Multiple_Row_Start___","___Multiple_Row_Start___","___Multiple_Row_Start___","___Multiple_Row_Start___","___Multiple_Row_Start___"]
[1,null,null,null,null,null,null,{"$f":"D32+E32+F32+G32","v":0},"Total = F12.2 + F12.3 + F12.4 + F12.5","Delete Row"]
["___Multiple_Row___","___Multiple_Row___","___Multiple_Row___","___Multiple_Row___","___Multiple_Row___","___Multiple_Row___","___Multiple_Row___","___Multiple_Row___","___Multiple_Row___","___Multiple_Row___"]
["sequence","value","value","value","value","value","value","formula"]
[2,null,null,null,null,null,null,{"$f":"D35+E35+F35+G35","v":0},"Total = F12.2 + F12.3 + F12.4 + F12.5","Delete Row"]
["Add Row"]
[]
[]
["13. Summary Expenses","","",""]
["Management (-)","F13.1",null,"Summary Expenses are entered as a negative values or if there were none during the period, enter “0”."]
["Performance (-)","F13.2",null,"Summary Expenses are entered as a negative values or if there were none during the period, enter “0”."]
["Administration (-)","F13.3",null,"Summary Expenses are entered as a negative values or if there were none during the period, enter “0”."]
["Professional (-)","F13.4",null,"Summary Expenses are entered as a negative values or if there were none during the period, enter “0”."]
[]
[null,{"$f":"ValidationErrorCombined","v":"THE FORM IS INCOMPLETE. PLEASE COMPLETE ALL HIGHLIGHTED (YELLOW) CELLS."}]
[null,{"$f":"IF(OR(ISBLANK(Q7.1),ISBLANK(Q7.2),ISBLANK(Q8.1),ISBLANK(Q8.2),ISBLANK(Q8.3),ISBLANK(Q8.4),ISBLANK(Q8.5),ISBLANK(Q8.6),ISBLANK(Q9.1),ISBLANK(Q9.2),ISBLANK(Q9.3),ISBLANK(Q9.4),ISBLANK(Q9.5),ISBLANK(Q9.6),ISBLANK(Q9.7),ISBLANK(Q9.8),ISBLANK(Q9.9),ISBLANK(Q9.10),ISBLANK(Q9.11),ISBLANK(Q13.1),ISBLANK(Q13.2),ISBLANK(Q13.3),ISBLANK(Q13.4)),\"THE FORM IS INCOMPLETE. PLEASE COMPLETE ALL HIGHLIGHTED (YELLOW) CELLS.\",\"READY TO SUBMIT.\")","v":"THE FORM IS INCOMPLETE. PLEASE COMPLETE ALL HIGHLIGHTED (YELLOW) CELLS."}]

{"sheet":"lists","index":2,"n_rows":308,"n_cols":16,"rows_kept":308,"cut":false,"hidden":true,"merged":[]}
["1.3","1.3.1","Multiple","2.1.0","2.1.1","2.1.3","2.1.4","2.1.5","2.1.6","2.1.7","2.2i","2.5.1","2.8.1","2.8.2","4i","2.6.1"]
["Multi-Fund","Feeder Fund","Afghanistan","KYD Cayman Islands Dollars","Activism","Fund not listed","AAOIFI (Islamic Financial Institutions)","Australia","Less than 50,000","Ex-Special Economic Zone Company","Director","A.R.C. Directors Ltd [1001534]","Anchin, Block & Anchin (Cayman) Ltd.","Unqualified with no Emphasis of Matter","Afghanistan","AFA Legal Resources (Cayman) Ltd."]
["Single Fund","Master Fund","Albania","USD US Dollars","Aggressive Growth","Amman Stock Exchange","Australian Accounting Standard","Brazil","50,000 – 99,999","Ex-Unlimited Liability","General Partner","Abacus Management Limited [1002120]","Arthur Bell (Cayman)","Unqualified with an Emphasis of Matter - fair valued securities","Albania","Alric Jeremy Lindsay"]
[null,"Not Applicable","Algeria","EUR Euro","Arbitrage","Athens Exchange","Brazilian GAAP","Canada","100,000 – 499,999","Exempt Limited Partnership","Trustee","Advanced Fund Administration (Cayman) Ltd. [1006994]","Baker Tilly (Cayman) Ltd.","Unqualified with an Emphasis of Matter - wind-up of the Fund","Algeria","Appleby (Cayman) Ltd."]
[null,null,"American Samoa","JPY Japanese Yen","Asset-backed / Mortgage-backed security","Australian Securities Exchange","Canadian GAAP","France","500,000 – 999,999","Exempt Trust","Managing Member","Advantage International Management (Cayman) Ltd. [1115531]","BBD Cayman","Unqualified with an Emphasis of Matter - other","American Samoa","Boxalls"]
[null,null,"Andorra","GBP Pounds Sterling","Commodity Trading","BATS Exchange","French GAAP","Hong Kong","1,000,000 – 4,999,999","Exempted Company",null,"Aequitas International Management Ltd. [2686821]","BDO Cayman Ltd.","Qualified - accounting policy for organization costs","Andorra","Campbells"]
[null,null,"Angola","CHF Swiss Francs","Convertible Arbitrage","Bayerische Borse AG","Hong Kong FRS","International Standards on Auditing","5,000,000 – 9,999,999","Exempted Company - By way of Continuation",null,"AIMS Limited [1795205]","Berdon Cayman","Qualified - other","Angola","Carey Olsen"]
[null,null,"Anguilla","HKD Hong Kong Dollars","Dedicated Short","Berlin Stock Exchange","International Accounting Standards","Islamic","10,000,000 or more","Exempted Limited Duration Company ",null,"Alexandria Bancorp Limited [1016260]","Berman Fisher Limited","Adverse","Anguilla","Collas Crill"]
[null,null,"Antarctica","AUD Australia Dollars","Digital Assets","Bermuda Stock Exchange","International Financial Reporting Standards","Israel",null,"Foreign Company ",null,"Allied Irish Banks, Public Limited Company [1019395]","BPM Cayman","Disclaimer","Antarctica","Conyers Dill & Pearman (Cayman) Limited"]
[null,null,"Antigua and Barbuda","CAD Canada Dollars","Distressed Securities","BM&F Bovespa","Irish GAAP","Japan",null,"International Business Company",null,"ALPHAMETRIX360 (CAYMAN) LTD. [1495944]","CITRIN COOPERMAN (CAYMAN)",null,"Antigua and Barbuda","De Lima Associates Ltd."]
[null,null,"Argentina","ADP Andorran Peseta","Dynamic Trading Approach","BME Spanish Exchanges","Israeli GAAP ","Liechtenstein",null,"Limited Duration Company",null,"ALPS Alternative Investment Services, Ltd. [1297656]","COHEN & COMPANY (CAYMAN)",null,"Argentina","Dillon Eustace"]
[null,null,"Armenia","AED (United) Arab Emirates Dirham","Emerging Markets","BOAG Borsen AG","Japanese GAAP","Luxembourg",null,"Limited Liability Company",null,"Altajir Bank [1020832]","CohnReznick (Cayman)",null,"Armenia","Emburys"]
[null,null,"Aruba","ALL Albanian Lek","Equity Hedged ","Bolsa de Comercio de Buenos Aires","Luxembourg GAAP","Malaysia",null,"Limited Partnership",null,"Alter Domus Cayman Limited [2530010]","Crowe Horwath Cayman Ltd.",null,"Aruba","Etienne Blake"]
[null,null,"Australia","AMD Armenian Dram","Equity Long Only","Bolsa de Comercio de Santiago","Malaysia","Norwegian",null,"Non-Profit Company",null,"Amicorp Cayman Fiduciary Limited [2130730]","Deloitte & Touche",null,"Australia","Finab Legal Ltd."]
[null,null,"Austria","ANG (Netherlands) Antillian Guilder","Equity Market Neutral","Bolsa de Valores de Caracas","Norwegian","Singapore",null,"Open-Ended Investment Company",null,"AMS Corporate Services (Cayman) Limited [1784193]","EisnerAmper Cayman Ltd.",null,"Austria","Forbes Hare"]
[null,null,"Azerbaijan","AOA Angolan Kwanza","ESG (Environmental, Social and Governance)","Bolsa de Valores de Colombia","Singapore FRS","Switzerland",null,"Open-Ended Limited Partnership",null,"Ancova Limited [2613074]","EisnerAmper US (Cayman) Ltd.",null,"Azerbaijan","FrancisGrey"]
[null,null,"Bahamas","ARS Argentine Peso","Event Driven","Bolsa de Valores de Lima","Switzerland GAAP","UK and Ireland",null,"Ordinary Non-Resident",null,"Aon Insurance Managers (Cayman) Ltd. [1034331]","Elliott Davis Cayman Ltd.",null,"Bahamas","Harney Westwood & Riegels"]
[null,null,"Bahrain","AWG Aruban Florin (old guilder)","Fixed Income","Bombay Stock Exchange","UK GAAP","United States",null,"Ordinary Resident",null,"Aon Risk Solutions (Cayman) Ltd. [1034320]","ELLIOTT DAVIS DECOSIMO CAYMAN",null,"Bahrain","Higgs & Johnson"]
[null,null,"Bangladesh","BAM Bosnia and Herzegovina Convertible ","Fixed Income Arbitrage","Borsa Italiana SPA","US GAAP",null,null,"Partnership",null,"Apex Fund Services (Cayman) Ltd. [1784646]","Ernst & Young Ltd.",null,"Bangladesh","HSM Chambers"]
[null,null,"Barbados","BBD Barbados Dollar","Foreign Exchange","Bratislava Stock Exchange",null,null,null,"Segregated Portfolio Company",null,"Appleby Global Services (Cayman) Limited [2767284]","Grant Thornton",null,"Barbados","Jacob Law Ltd."]
[null,null,"Belarus","BDT Bangladeshi Taka","Fund of funds","Bucharest Stock Exchange",null,null,null,"Unit Trust",null,"Arcadia Group Ltd. [1036464]","Kaufman, Rossin & Co. Cayman",null,"Belarus","Loeb Smith"]
[null,null,"Belgium","BGN Bulgarian Lev","Fund of hedge funds ","Budapest Stock Exchange",null,null,null,null,null,"Armand International Fiduciary (Cayman) Limited [2414370]","KPMG",null,"Belgium","Maples and Calder - Cayman"]
[null,null,"Belize","BHD Bahraini Dinar","Funds of hedge funds ","Bulgarian Stock Exchange",null,null,null,null,null,"Artex Risk Solutions (Cayman No2) Limited [1839740]","Marcum (Cayman)",null,"Belize","McGrath Tonner"]
[null,null,"Benin","BIF Burundi Franc","Global Macro","Cayman Islands Stock Exchange",null,null,null,null,null,"Aston Corporate Managers, Ltd. [1043280]","Margolin, Winer & Evens (Cayman)",null,"Benin","Mourant Ozannes"]
[null,null,"Bermuda","BMD Bermudian Dollar","Insurance Linked Securities","Channel Islands Stock Exchange",null,null,null,null,null,"Athena International Management Limited [1043744]","Mayer Hoffman McCann (Cayman)",null,"Bermuda","Nelson & Company"]
[null,null,"Bhutan","BND Brunei Dollar","Long-only absolute return funds ","Chicago Board Options Exchange",null,null,null,null,null,"Aureum Reinsurance Company, Ltd. [2598864]","Mazars (Cayman)",null,"Bhutan","Ogier - Cayman"]
[null,null,"Bolivia","BOB Bolivian Boliviano","Long/Short Equity","Chicago Stock Exchange",null,null,null,null,null,"Avalon Trust & Corporate Services Ltd. [1085335]","MHA MacIntyre Hudson Cayman",null,"Bolivia","Paget-Brown & Company Ltd."]
[null,null,"Bonaire, Sint Eustatius and Saba","BRL Brazil Real","Macro Investment","CME Group",null,null,null,null,null,"Axiss International Management Ltd. [1047303]","Moore Stephens Cayman Ltd.",null,"Bonaire, Sint Eustatius and Saba","Priestleys, Attorneys-at-Law"]
[null,null,"Bosnia and Herzegovina","BRL Brazilian Real","Managed Futures","Colombo Stock Exchange",null,null,null,null,null,"Balboa Management Ltd. [2250345]","Moss Adams (Cayman) LP",null,"Bosnia and Herzegovina","Solomon Harris"]
[null,null,"Botswana","BTN Bhutan Ngultrum","Market Directional","Copenhagen Stock Exchange",null,null,null,null,null,"Banco Bilbao Vizcaya Argentaria, S.A. [1049123]","O'Connor Davies (Cayman)",null,"Botswana","Stuarts Walker Hersant Humphries"]
[null,null,"Brazil","BWP Botswana Pula","Market Neutral","Cyprus Stock Exchange",null,null,null,null,null,"Banco Bradesco S.A. [1049215]","PricewaterhouseCoopers",null,"Brazil","Travers Thorp Alberga"]
[null,null,"British Indian Ocean Territory","BYR Belarusian Ruble","Market Timing","Czech Stock Exchange",null,null,null,null,null,"Banco Santander (Brasil) S.A. [1049974]","Raich Ende Malter (Cayman)",null,"British Indian Ocean Territory","Turners"]
[null,null,"British Virgin Islands","BZD Belize Dollar","Merger Arbitrage","Deutsche Borse",null,null,null,null,null,"Bank Espirito Santo (International) Limited [1050383]","Rankin Berkower (Cayman) Ltd.",null,"British Virgin Islands","U Law Limited"]
[null,null,"Brunei Darussalam","CDF Congolese Franc","Multi-Manager ","Dusseldorf Stock Exchange",null,null,null,null,null,"Bank of Bermuda (Cayman) Limited [1050556]","Richey, May & Co. (Cayman)",null,"Brunei Darussalam","Walkers (Cayman)"]
[null,null,"Bulgaria","CLP Chilean Peso","Multi-Strategy","EDX London",null,null,null,null,null,"BBAM Reef Limited [1048025]","RSM Cayman Ltd",null,"Bulgaria","Other…"]
[null,null,"Burkina Faso","CNY China Yuan Renmimbi","Passive management / Index tracking","Eurex",null,null,null,null,null,"BEACON MANAGEMENT (CAYMAN) LTD. [2603786]","Russell Bedford (Cayman)",null,"Burkina Faso"]
[null,null,"Burundi","COP Colombian Peso","Private Equity","Euronext",null,null,null,null,null,"Bell Rock Corporate Services Limited [1975363]","Sandler & Company (Cayman)",null,"Burundi"]
[null,null,"Cambodia","CRC Costa Rican Colon","Real Estate ","Fukuoka Stock Exchange",null,null,null,null,null,"Bessemer Trust Company (Cayman) Limited [1058783]","Spicer Jeffries (Cayman)",null,"Cambodia"]
[null,null,"Cameroon","CUP Cuban Peso","Relative Value","Hong Kong Exchange and Clearing",null,null,null,null,null,"BNP Paribas Bank & Trust Cayman Limited [1064254]","Squar Milner (Cayman), Ltd.",null,"Cameroon"]
[null,null,"Canada","CVE Cape Verde Escudo","Statistical Arbitrage","Indonesia Stock Exchange",null,null,null,null,null,"BNP Paribas Fund Administration Services (Cayman) Limited [1788850]","Stout, Causey & Horning (Cayman)",null,"Canada : Alberta"]
[null,null,"Cape Verde","CZK Czech Koruna","Volatility Arbitrage","Intercontinental Exchange",null,null,null,null,null,"BNP Paribas Trust Services (Cayman) Limited [1784650]","Tait Weller (Cayman)",null,"Canada : British Columbia"]
[null,null,"Cayman Islands","DJF Djibouti Franc","Other…","International Securities Exchange",null,null,null,null,null,"BNY Mellon Fund Management (Cayman) Limited [1064361]","Untracht Early (Cayman)",null,"Canada : Manitoba"]
[null,null,"Central African Republic","DKK Denmark Kroner",null,"Irish Stock Exchange",null,null,null,null,null,"BNY Mellon Trust Company (Cayman) Limited [1050722]","Warren Averett (Cayman) Ltd.",null,"Canada : New Brunswick"]
[null,null,"Chad","DOP Dominican Peso",null,"Istanbul Stock Exchange",null,null,null,null,null,"Bodden Corporate Services Ltd [1064895]","Withum (Cayman)",null,"Canada : Newfoundland and Labrador"]
[null,null,"Chile","DZD Algerian Dinar",null,"JASDAQ",null,null,null,null,null,"Bogle Insurance Brokers Ltd. [1138266]","Zeifmans (Cayman)",null,"Canada : Northwest Territories"]
[null,null,"China","ECS Ecuador Sucre",null,"Johannesburg Stock Exchange",null,null,null,null,null,"Britannia Corporate Management Ltd. [1070930]",null,null,"Canada : Nova Scotia"]
[null,null,"Christmas Island","EEK Estonian Kroon",null,"Korea Stock Exchange",null,null,null,null,null,"Brown Brothers Harriman Trust Company (Cayman) Limited [1071490]",null,null,"Canada : Nunavut"]
[null,null,"Cocos (Keeling) Islands","EGP Egyption Pound",null,"Ljubljana Stock Exchange",null,null,null,null,null,"BTCAY Nominees Ltd. [2594734]",null,null,"Canada : Ontario"]
[null,null,"Colombia","ERN Eritrean Nakfa",null,"London Stock Exchange",null,null,null,null,null,"Butterfield Bank (Cayman) Limited [1075023]",null,null,"Canada : Prince Edward Island"]
[null,null,"Comoros","ETB Ethiopian Birr",null,"Luxembourg Stock Exchange",null,null,null,null,null,"Cainvest Bank and Trust Limited [1105101]",null,null,"Canada : Quebec"]
[null,null,"Congo","FJD Fiji Dollar",null,"Madrid Stock Exchange",null,null,null,null,null,"Calderwood [2556982]",null,null,"Canada : Saskatchewan"]
[null,null,"Congo, The Democratic Republic of the","FKP Falkland Islands Pound",null,"Malaysia Stock Exchange",null,null,null,null,null,"Campbells Corporate Services Limited [1077786]",null,null,"Canada : Yukon Territory"]
[null,null,"Cook Islands","GEL Georgian Lari",null,"Malta Stock Exchange",null,null,null,null,null,"Captiva (Cayman) Ltd. [2402540]",null,null,"Cape Verde"]
[null,null,"Costa Rica","GHS Ghanaian Cedi",null,"Mexican Stock Exchange",null,null,null,null,null,"Captive Management Initiatives, Ltd [1079374]",null,null,"Cayman Islands"]
[null,null,"Côte d'Ivoire","GIP Gibraltar Pound",null,"Montreal Exchange",null,null,null,null,null,"Caribbean Insurance Practice (International) Ltd. [1079783]",null,null,"Central African Republic"]
[null,null,"Croatia","GMD Gambian Dalasi",null,"Moscow Interbank Currency Exchange",null,null,null,null,null,"Caribbean Management Ltd [1079794]",null,null,"Chad"]
[null,null,"Cuba","GNF Guiniea Franc",null,"Nagoya Stock Exchange",null,null,null,null,null,"Carne Global Financial Services (Cayman) Limited [1082373]",null,null,"Chile"]
[null,null,"Curacao","GTQ Guatemalan Quetzal",null,"NASDAQ OMX",null,null,null,null,null,"Cayman Fiduciary Limited [2046833]",null,null,"China"]
[null,null,"Cyprus","GWP Guinea-Bissau Peso",null,"NASDAQ OMX BX",null,null,null,null,null,"Cayman International Corporate & Marine Services Ltd [1085081]",null,null,"Christmas Island"]
[null,null,"Czech Republic","GYD Guyanan Dollar",null,"NASDAQ OMX PHLX",null,null,null,null,null,"Cayman Islands Corporation, Ltd. [2631720]",null,null,"Cocos (Keeling) Islands"]
[null,null,"Denmark","HNL Honduran Lempira",null,"NASDAQ Stock Market",null,null,null,null,null,"Cayman Law Group Ltd. [2362360]",null,null,"Colombia"]
[null,null,"Djibouti","HRK Croatian Kuna",null,"National Stock Exchange (U.S.)",null,null,null,null,null,"Cayman Management Ltd [1085140]",null,null,"Comoros"]
[null,null,"Dominica","HTG Haitian Gourde",null,"National Stock Exchange of India",null,null,null,null,null,"Cayman National Bank Ltd. [1085184]",null,null,"Congo"]
[null,null,"Dominican Republic","HUF Hungarian Forint",null,"New York Stock Exchange",null,null,null,null,null,"Cayman National Fund Services Ltd. [1085195]",null,null,"Congo, The Democratic Republic of the"]
[null,null,"Ecuador","IDR Indonesian Rupiah",null,"New Zealand Exchange",null,null,null,null,null,"Cayman National Trust Co. Ltd. [1085232]",null,null,"Cook Islands"]
[null,null,"Egypt","ILS Israeili New Shekel",null,"NYSE Amex",null,null,null,null,null,"Centaur Fund Services (Cayman) Limited [2600684]",null,null,"Costa Rica"]
[null,null,"El Salvador","INR India Rupees",null,"NYSE Arca",null,null,null,null,null,"Centralis Cayman Limited [2412712]",null,null,"Côte d'Ivoire"]
[null,null,"Equatorial Guinea","IQD Iraqi Dinar",null,"NYSE Euronext",null,null,null,null,null,"CI Trustees Ltd. [1562724]",null,null,"Croatia"]
[null,null,"Eritrea","IRR Iranian Ria",null,"OMX Nordic Exchanges",null,null,null,null,null,"CIBC Bank and Trust Company (Cayman) Limited [1100934]",null,null,"Cuba"]
[null,null,"Estonia","ISK Iceland Krona",null,"Osaka Securities Exchange",null,null,null,null,null,"Circle Investment Support Services (Cayman) Limited [1076740]",null,null,"Curacao"]
[null,null,"Ethiopia","JMD Jamaican Dollar",null,"Oslo Axess",null,null,null,null,null,"Circumference FS (Cayman) Ltd. [1576212]",null,null,"Cyprus"]
[null,null,"Falkland Islands (Malvinas)","JOD Jordanian Dinar",null,"Oslo Stock Exchange",null,null,null,null,null,"Circumference SP Services (Cayman) Ltd. [1576234]",null,null,"Czech Republic"]
[null,null,"Faroe Islands","KES Kenyan Schilling",null,"Philippine Stock Exchange",null,null,null,null,null,"CITCO Bank and Trust Company Limited [1101704]",null,null,"Denmark"]
[null,null,"Fiji","KGS Kyrgyzstanian Som",null,"PLUS Markets",null,null,null,null,null,"Citco Fund Administration (Cayman Islands) Limited [1991290]",null,null,"Djibouti"]
[null,null,"Finland","KHR Kampuchean (Cambodian) Riel",null,"Prague Stock Exchange",null,null,null,null,null,"Citco Fund Services (Cayman Islands) Limited [1101730]",null,null,"Dominica"]
[null,null,"France","KMF Comoros Franc",null,"RMX Hannover",null,null,null,null,null,"Citco Trustees (Cayman) Limited [1101774]",null,null,"Dominican Republic"]
[null,null,"French Guiana","KPW North Korean Won",null,"Saudi Stock Exchange (Tadawul)",null,null,null,null,null,"Citco Trustees (UT) Limited [1773601]",null,null,"Ecuador"]
[null,null,"French Polynesia","KRW Korea (South) Won",null,"Shanghai Stock Exchange",null,null,null,null,null,"CITITRUST (CAYMAN) LIMITED [1102146]",null,null,"Egypt"]
[null,null,"French Southern Territories","KWD Kuwaiti Dinar",null,"Shenzhen Stock Exchange",null,null,null,null,null,"CO Services Cayman Limited [1953221]",null,null,"El Salvador"]
[null,null,"Gabon","KZT Kazakhstan Tenge",null,"Singapore Exchange",null,null,null,null,null,"Codan (Cayman) Ltd. [1106136]",null,null,"Equatorial Guinea"]
[null,null,"Gambia","LAK Lao Kip",null,"SIX Swiss Exchange",null,null,null,null,null,"Collas Crill Corporate Services Limited [1079551]",null,null,"Eritrea"]
[null,null,"Georgia","LBP Lebanese Pound",null,"Stock Exchange of Mauritius",null,null,null,null,null,"Compass OFM Limited [2511051]",null,null,"Estonia"]
[null,null,"Germany","LKR Sri Lankan Rupee",null,"Stuttgart Stock Exchange",null,null,null,null,null,"Conyers Directors (Cayman) Limited [1106140]",null,null,"Ethiopia"]
[null,null,"Ghana","LRD Liberian Dollar",null,"Taiwan Stock Exchange",null,null,null,null,null,"Conyers Trust Company (Cayman) Limited [1106151]",null,null,"Falkland Islands (Malvinas)"]
[null,null,"Gibraltar","LSL Lesotho Loti",null,"Tel Aviv Stock Exchange",null,null,null,null,null,"Corporate Filing Services Ltd [1111423]",null,null,"Faroe Islands"]
[null,null,"Greece","LTL Lithuanian Litas",null,"The Egyptian Exchange",null,null,null,null,null,"Corporate Management Solutions (Cayman) Ltd. [1894395]",null,null,"Fiji"]
[null,null,"Greenland","LVL Latvian Lats",null,"The Stock Exchange of Thailand",null,null,null,null,null,"Corpserve Limited [1111471]",null,null,"Finland"]
[null,null,"Grenada","LYD Libyan Dinar",null,"TLX s.p.a.",null,null,null,null,null,"Coutts & Co (Cayman) Limited [1438710]",null,null,"France"]
[null,null,"Guadeloupe","MAD Moroccan Dirham",null,"Tokyo Stock Exchange",null,null,null,null,null,"Crestbridge Cayman Limited [2518541]",null,null,"French Guiana"]
[null,null,"Guam","MDL Moldovan Leu",null,"Toronto Stock Exchange",null,null,null,null,null,"Danesmead Partners [2359733]",null,null,"French Polynesia"]
[null,null,"Guatemala","MGF Malagasy Franc",null,"Valencia Stock Exchange",null,null,null,null,null,"DanQ International Trust Co. Ltd. [2716781]",null,null,"French Southern Territories"]
[null,null,"Guernsey","MKD Macedonian Denar",null,"Vienna Stock Exchange",null,null,null,null,null,"DE (Cayman) Limited [1963662]",null,null,"Gabon"]
[null,null,"Guinea","MMK Myanmar Kyat",null,"Vilnius Stock Exchange",null,null,null,null,null,"Delta Bank and Trust Company, Grand Cayman [1136074]",null,null,"Gambia"]
[null,null,"Guinea-Bissau","MNT Mongolian Tugrik",null,"Warsaw Stock Exchange",null,null,null,null,null,"Delta FS Limited [1894642]",null,null,"Georgia"]
[null,null,"Guyana","MOP Macau Pataca",null,"Other Exchange",null,null,null,null,null,"DEUTSCHE BANK (CAYMAN) LIMITED [1138885]",null,null,"Germany"]
[null,null,"Haiti","MRO Mauritanian Ouguiya",null,null,null,null,null,null,null,"DMS Bank & Trust Ltd. [1085066]",null,null,"Ghana"]
[null,null,"Heard Island and McDonald Islands","MUR Mauritius Rupee",null,null,null,null,null,null,null,"DMS Corporate Services Ltd. [1142315]",null,null,"Gibraltar"]
[null,null,"Holy See (Vatican City State)","MVR Maldive Rufiyaa",null,null,null,null,null,null,null,"DMS Offshore Investment Services Ltd. [1142330]",null,null,"Greece"]
[null,null,"Honduras","MWK Malawi Kwacha",null,null,null,null,null,null,null,"Dundee Leeds Management Services (Cayman) Ltd. [1149352]",null,null,"Greenland"]
[null,null,"Hong Kong","MXN Mexican Peso",null,null,null,null,null,null,null,"EastWest Trust Company Ltd. [1151570]",null,null,"Grenada"]
[null,null,"Hungary","MYR Malaysia Ringgit",null,null,null,null,null,null,null,"EFG Wealth Management (Cayman) Ltd. [1156142]",null,null,"Guadeloupe"]
[null,null,"Iceland","NAD Namibian Dollar",null,null,null,null,null,null,null,"EisnerAmper Governance Services Ltd. [2759595]",null,null,"Guam"]
[null,null,"India","NGN Nigerian Naira",null,null,null,null,null,null,null,"Elian Corporate Trustee (Cayman) Limited [1392333]",null,null,"Guatemala"]
[null,null,"Indonesia","NIO Nicaraguan Cordoba Oro",null,null,null,null,null,null,null,"Elian SF Trustee (Cayman) Limited [2531281]",null,null,"Guernsey"]
[null,null,"Iran, Islamic Republic of","NLG Dutch Guilder",null,null,null,null,null,null,null,"Elian Trustee (Cayman) Limited [1392322]",null,null,"Guinea"]
[null,null,"Iraq","NOK Norway Kroner",null,null,null,null,null,null,null,"Estera Trust (Cayman) Limited [1035156]",null,null,"Guinea-Bissau"]
[null,null,"Ireland","NPR Nepalese Rupee",null,null,null,null,null,null,null,"Etienne Blake Corporate Services Limited [2619013]",null,null,"Guyana"]
[null,null,"Isle of Man","NZD New Zealand Dollars",null,null,null,null,null,null,null,"Everest Management Ltd. [1167386]",null,null,"Haiti"]
[null,null,"Israel","OMR Omani Rial",null,null,null,null,null,null,null,"F.C.M. Ltd. [1168930]",null,null,"Heard Island and McDonald Islands"]
[null,null,"Italy","PAB Panamanian Balboa",null,null,null,null,null,null,null,"FCMI Financial Services (Cayman) Ltd. [1171273]",null,null,"Holy See (Vatican City State)"]
[null,null,"Jamaica","PEN Peruvian Neuevo Sol",null,null,null,null,null,null,null,"FFP (Corporate Services) Limited [2789146]",null,null,"Honduras"]
[null,null,"Japan","PGK Papua New Guinea Kina",null,null,null,null,null,null,null,"FFP (Directors) Limited [2789102]",null,null,"Hong Kong"]
[null,null,"Jersey","PHP Philippine Peso",null,null,null,null,null,null,null,"FIL Trust Company Limited [1173874]",null,null,"Hungary"]
[null,null,"Jordan","PKR Pakistan Rupee",null,null,null,null,null,null,null,"FINAB International Corporate Management Services Ltd. [1174014]",null,null,"Iceland"]
[null,null,"Kazakhstan","PLN Polish Zloty",null,null,null,null,null,null,null,"First Regents Bank & Trust (Cayman) Ltd. [1835105]",null,null,"India"]
[null,null,"Kenya","PYG Paraguay Guarani",null,null,null,null,null,null,null,"Five Continents Financial Limited [1176044]",null,null,"Indonesia"]
[null,null,"Kiribati","QAR Qatari Rial",null,null,null,null,null,null,null,"Five Continents Partners Limited [2514665]",null,null,"Iran, Islamic Republic of"]
[null,null,"Korea, Democratic People's Republic of","RUB Russian Rouble",null,null,null,null,null,null,null,"Flagship Offshore Ltd. [1976656]",null,null,"Iraq"]
[null,null,"Korea, Republic of","RWF Rwandan Franc",null,null,null,null,null,null,null,"Focus Administration Ltd. [1176770]",null,null,"Ireland"]
[null,null,"Kuwait","SAR Saudi Riyal",null,null,null,null,null,null,null,"Forbes Hare Trust Company Limited [1957804]",null,null,"Isle of Man"]
[null,null,"Kyrgyzstan","SBD Solomon Islands Dollar",null,null,null,null,null,null,null,"Fordsar (Cayman) Limited [1177223]",null,null,"Israel"]
[null,null,"Lao People's Democratic Republic","SCR Seychelles Rupee",null,null,null,null,null,null,null,"Foreshore Corporate Services Ltd. [1177330]",null,null,"Italy"]
[null,null,"Latvia","SDD Sudanese Dinar",null,null,null,null,null,null,null,"Fund Fiduciary Partners Limited [1995195]",null,null,"Jamaica"]
[null,null,"Lebanon","SEK Sweden Krona",null,null,null,null,null,null,null,"Fund Secretaries Limited [2088273]",null,null,"Japan"]
[null,null,"Lesotho","SGD Singapore Dollars",null,null,null,null,null,null,null,"G.A.S. (Cayman) Limited [1187060]",null,null,"Jersey"]
[null,null,"Liberia","SHP St. Helena Pound",null,null,null,null,null,null,null,"G.K. Management Limited [1187104]",null,null,"Jordan"]
[null,null,"Libyan Arab Jamahiriya","SIT Slovenian Tolar",null,null,null,null,null,null,null,"Genesis Trust & Corporate Services Ltd. [1192951]",null,null,"Kazakhstan"]
[null,null,"Liechtenstein","SKK Slovak Koruna",null,null,null,null,null,null,null,"Givens Hall Bank & Trust Ltd [1200566]",null,null,"Kenya"]
[null,null,"Lithuania","SLL Sierra Leone Leone",null,null,null,null,null,null,null,"Global Corporate Solutions SGG Cayman Limited [2724363]",null,null,"Kiribati"]
[null,null,"Luxembourg","SOS Somali Schilling",null,null,null,null,null,null,null,"Global Fund Solutions SGG Cayman Limited [2435613]",null,null,"Korea, Democratic People's Republic of"]
[null,null,"Macao","SRG Suriname Guilder",null,null,null,null,null,null,null,"Global Funds Management Ltd. [1203005]",null,null,"Korea, Republic of"]
[null,null,"Macedonia, The former Yugoslav Republic of","STD Sao Tome and Principe Dobra",null,null,null,null,null,null,null,"Global Funds Trust Company [1203020]",null,null,"Kuwait"]
[null,null,"Madagascar","SVC El Salvador Colon",null,null,null,null,null,null,null,"GlobeOp Financial Services (Cayman) Limited [1204324]",null,null,"Kyrgyzstan"]
[null,null,"Malawi","SYP Syrian Pound",null,null,null,null,null,null,null,"H&C Corporate Services Limited [2788671]",null,null,"Lao People's Democratic Republic"]
[null,null,"Malaysia","SZL Swaziland Lilangeni",null,null,null,null,null,null,null,"H & J Corporate Services (Cayman) Ltd [1735193]",null,null,"Latvia"]
[null,null,"Maldives","THB Thailand Baht",null,null,null,null,null,null,null,"Harmonic Corporate Services Limited [2605514]",null,null,"Lebanon"]
[null,null,"Mali","TJS Tajikistani Somoni",null,null,null,null,null,null,null,"Harmonic Fund Services [1219831]",null,null,"Lesotho"]
[null,null,"Malta","TMM Turkmenistan Manat",null,null,null,null,null,null,null,"Harneys Fiduciary (Cayman) Limited [2416363]",null,null,"Liberia"]
[null,null,"Marshall Islands","TND Tunisian Dinar",null,null,null,null,null,null,null,"Harneys Services (Cayman) Limited [2416363]",null,null,"Libyan Arab Jamahiriya"]
[null,null,"Martinique","TOP Tongan Pa'anga",null,null,null,null,null,null,null,"Hawksford Services (Cayman) Limited [2446920]",null,null,"Liechtenstein"]
[null,null,"Mauritania","TRY Turkish Lira",null,null,null,null,null,null,null,"HedgeServ (Cayman) Ltd. [1223692]",null,null,"Lithuania"]
[null,null,"Mauritius","TTD Trinidad and Tobago Dollar",null,null,null,null,null,null,null,"Hermes Corporate Services Ltd. [2064624]",null,null,"Luxembourg"]
[null,null,"Mayotte","TWD Taiwan Dollars",null,null,null,null,null,null,null,"HF Fund Services Ltd. [1227365]",null,null,"Macao"]
[null,null,"Mexico","TZS Tanzanian Schilling",null,null,null,null,null,null,null,"HighWater Limited [1141571]",null,null,"Macedonia, The former Yugoslav Republic of"]
[null,null,"Micronesia, Federated States of","UAK Ukraine Karbovanets",null,null,null,null,null,null,null,"HLX Management Ltd. [2359184]",null,null,"Madagascar"]
[null,null,"Moldova, Republic of","UYU Uruguayan Peso",null,null,null,null,null,null,null,"HMS Cayman Limited [1219470]",null,null,"Malawi"]
[null,null,"Monaco","UZS Uzbekistan Som",null,null,null,null,null,null,null,"Holdun Trust (Cayman) Limited [2435263]",null,null,"Malaysia"]
[null,null,"Mongolia","VEF Venezuelan Bolivar",null,null,null,null,null,null,null,"HSBC Cayman Services Limited [1231414]",null,null,"Maldives"]
[null,null,"Montenegro","VND Vietnamese Dong",null,null,null,null,null,null,null,"HSBC International Trustee Limited [1231602]",null,null,"Mali"]
[null,null,"Montserrat","VUV Vanuatu Vatu",null,null,null,null,null,null,null,"HSBC Trustee (Cayman) Limited [1231834]",null,null,"Malta"]
[null,null,"Morocco","WST Samoan Tala",null,null,null,null,null,null,null,"HSM Corporate Services Ltd. [2448563]",null,null,"Marshall Islands"]
[null,null,"Mozambique","XCD Eastern Caribbean Dollar",null,null,null,null,null,null,null,"Hyperion Insurance Management (Cayman) Limited [1819974]",null,null,"Martinique"]
[null,null,"Myanmar","YER Yemeni Real",null,null,null,null,null,null,null,"ICG Management Limited [1235393]",null,null,"Mauritania"]
[null,null,"Namibia","YUN Yugoslav Dinar",null,null,null,null,null,null,null,"IKONIC Fund Services (Cayman) Ltd. [1903952]",null,null,"Mauritius"]
[null,null,"Nauru","ZAL Financial Rand",null,null,null,null,null,null,null,"Inbhear Management Services Limited [2563680]",null,null,"Mayotte"]
[null,null,"Nepal","ZAR South Africa Rand",null,null,null,null,null,null,null,"International Corporation Services Ltd [1239350]",null,null,"Mexico"]
[null,null,"Netherlands","ZRN New Zaire",null,null,null,null,null,null,null,"International Management Services Ltd. [1239545]",null,null,"Micronesia, Federated States of"]
[null,null,"New Caledonia","ZWD Zimbabwe Dollar",null,null,null,null,null,null,null,"International Property Insurance Ltd. [2510502]",null,null,"Moldova, Republic of"]
[null,null,"New Zealand",null,null,null,null,null,null,null,null,"Intertrust Corporate Services (Cayman) Limited [1663583]",null,null,"Monaco"]
[null,null,"Nicaragua",null,null,null,null,null,null,null,null,"Intertrust Directors (Cayman) Limited [1117653]",null,null,"Mongolia"]
[null,null,"Niger",null,null,null,null,null,null,null,null,"Intertrust Fund Services (Cayman) Limited [1563170]",null,null,"Montenegro"]
[null,null,"Nigeria",null,null,null,null,null,null,null,null,"Intertrust SPV (Cayman) Limited [1563181]",null,null,"Montserrat"]
[null,null,"Niue",null,null,null,null,null,null,null,null,"Intertrust Trustees (Cayman) Limited [1105145]",null,null,"Morocco"]
[null,null,"Norfolk Island",null,null,null,null,null,null,null,null,"Intertrust Trustees II (Cayman) Limited [1043641]",null,null,"Mozambique"]
[null,null,"Northern Mariana Islands",null,null,null,null,null,null,null,null,"Island Heritage Retirement Trust Company Ltd. [2603963]",null,null,"Myanmar"]
[null,null,"Norway",null,null,null,null,null,null,null,null,"ITA Bank and Trust Company Ltd. [1498490]",null,null,"Namibia"]
[null,null,"Oman",null,null,null,null,null,null,null,null,"Itau Bank & Trust Cayman Ltd. [1553031]",null,null,"Nauru"]
[null,null,"Pakistan",null,null,null,null,null,null,null,null,"J.P. Morgan Trust Company (Cayman) Limited [1245650]",null,null,"Nepal"]
[null,null,"Palau",null,null,null,null,null,null,null,null,"Jacob Corporate Ltd. [2638801]",null,null,"Netherlands"]
[null,null,"Palestinian Territory, Occupied",null,null,null,null,null,null,null,null,"JP FUND ADMINISTRATION (CAYMAN) LTD [1290133]",null,null,"New Caledonia"]
[null,null,"Panama",null,null,null,null,null,null,null,null,"JP Integra Trust Company (Cayman) Limited [2557564]",null,null,"New Zealand"]
[null,null,"Papua New Guinea",null,null,null,null,null,null,null,null,"JP Management Services Limited [2514864]",null,null,"Nicaragua"]
[null,null,"Paraguay",null,null,null,null,null,null,null,null,"JTC (Cayman) Limited [2124566]",null,null,"Niger"]
[null,null,"Peru",null,null,null,null,null,null,null,null,"JTC Fund Services (Cayman) Ltd. [1512825]",null,null,"Nigeria"]
[null,null,"Philippines",null,null,null,null,null,null,null,null,"K. Corporate Services Ltd [1294016]",null,null,"Niue"]
[null,null,"Pitcairn",null,null,null,null,null,null,null,null,"KB Associates (Cayman) Ltd. [1780660]",null,null,"Norfolk Island"]
[null,null,"Poland",null,null,null,null,null,null,null,null,"KPMG Turnaround Executive Management (Cayman) Ltd. [2461432]",null,null,"Northern Mariana Islands"]
[null,null,"Portugal",null,null,null,null,null,null,null,null,"Lainston International Management, Ltd. [1310142]",null,null,"Norway"]
[null,null,"Puerto Rico",null,null,null,null,null,null,null,null,"LC Corporate Services Ltd. [2123052]",null,null,"Oman"]
[null,null,"Qatar",null,null,null,null,null,null,null,null,"LGT Bank (Cayman) Ltd. [1319032]",null,null,"Pakistan"]
[null,null,"Réunion",null,null,null,null,null,null,null,null,"Lindsay Fiduciary Services (Cayman) Ltd. [1949872]",null,null,"Palau"]
[null,null,"Romania",null,null,null,null,null,null,null,null,"Lyra Capital Services (Cayman) Limited [2620096]",null,null,"Palestinian Territory, Occupied"]
[null,null,"Russian Federation",null,null,null,null,null,null,null,null,"Magellan Cove Corporation [1331341]",null,null,"Panama"]
[null,null,"Rwanda",null,null,null,null,null,null,null,null,"Mainstream Fund Services (Cayman) Limited [1548201]",null,null,"Papua New Guinea"]
[null,null,"Saint Helena",null,null,null,null,null,null,null,null,"Maitland Administration Limited [1006272]",null,null,"Paraguay"]
[null,null,"Saint Kitts and Nevis",null,null,null,null,null,null,null,null,"Maitland Corporate Services Limited [1006283]",null,null,"Peru"]
[null,null,"Saint Lucia",null,null,null,null,null,null,null,null,"ManagementPlus (Cayman) Limited [1747395]",null,null,"Philippines"]
[null,null,"Saint Pierre and Miquelon",null,null,null,null,null,null,null,null,"Maples Corporate Services Limited [1334325]",null,null,"Pitcairn"]
[null,null,"Saint Vincent and the Grenadines",null,null,null,null,null,null,null,null,"Maples Fiduciary Services (Cayman) Limited [1334336]",null,null,"Poland"]
[null,null,"Samoa",null,null,null,null,null,null,null,null,"Maples Fund Services (Cayman) Limited [1747314]",null,null,"Portugal"]
[null,null,"San Marino",null,null,null,null,null,null,null,null,"Maples Trustee Services (Cayman) Limited [1751481]",null,null,"Puerto Rico"]
[null,null,"Sao Tome and Principe",null,null,null,null,null,null,null,null,"MaplesFS Limited [1334351]",null,null,"Qatar"]
[null,null,"Saudi Arabia",null,null,null,null,null,null,null,null,"Marbury Fund Services (Cayman) Limited [2013686]",null,null,"Réunion"]
[null,null,"Senegal",null,null,null,null,null,null,null,null,"Maricorp Services Ltd. [1338606]",null,null,"Romania"]
[null,null,"Serbia",null,null,null,null,null,null,null,null,"Marsh Company Management Services Cayman Ltd. [2702033]",null,null,"Russian Federation"]
[null,null,"Seychelles",null,null,null,null,null,null,null,null,"McGrath Tonner Corporate Services Limited [1474583]",null,null,"Rwanda"]
[null,null,"Sierra Leone",null,null,null,null,null,null,null,null,"Merrill Lynch Bank and Trust Company (Cayman) Limited [1354986]",null,null,"Saint Helena"]
[null,null,"Singapore",null,null,null,null,null,null,null,null,"MG Management Ltd. [1872732]",null,null,"Saint Kitts and Nevis"]
[null,null,"Sint Maarten",null,null,null,null,null,null,null,null,"Millennium bcp Bank & Trust [1367295]",null,null,"Saint Lucia"]
[null,null,"Slovakia",null,null,null,null,null,null,null,null,"Monitor (Cayman) Limited [2767284]",null,null,"Saint Pierre and Miquelon"]
[null,null,"Slovenia",null,null,null,null,null,null,null,null,"Morgan Stanley Fund Services (Cayman) Ltd. [1371661]",null,null,"Saint Vincent and the Grenadines"]
[null,null,"Solomon Islands",null,null,null,null,null,null,null,null,"Morval Bank & Trust Cayman Ltd. [1372416]",null,null,"Samoa"]
[null,null,"Somalia",null,null,null,null,null,null,null,null,"Mourant Governance Services (Cayman) Limited [1372921]",null,null,"San Marino"]
[null,null,"South Africa",null,null,null,null,null,null,null,null,"MUFG Alternative Fund Services (Cayman) Limited [1551616]",null,null,"Sao Tome and Principe"]
[null,null,"South Georgia and the South Sandwich Islands",null,null,null,null,null,null,null,null,"MUFG Fund Services (Cayman) Limited [1075056]",null,null,"Saudi Arabia"]
[null,null,"South Sudan",null,null,null,null,null,null,null,null,"NCB (Cayman) Limited [1377773]",null,null,"Senegal"]
[null,null,"Spain",null,null,null,null,null,null,null,null,"Northern Trust Cayman International, Ltd. [1388623]",null,null,"Serbia"]
[null,null,"Sri Lanka",null,null,null,null,null,null,null,null,"Northern Trust Global Fund Services Cayman Limited [1882790]",null,null,"Seychelles"]
[null,null,"Sudan",null,null,null,null,null,null,null,null,"NovaSage Incorporations (Cayman) Limited [1840893]",null,null,"Sierra Leone"]
[null,null,"Suriname",null,null,null,null,null,null,null,null,"Ogier Global (Cayman) Limited [2414381]",null,null,"Singapore"]
[null,null,"Svalbard and Jan Mayen",null,null,null,null,null,null,null,null,"Osiris International Cayman Limited [1881666]",null,null,"Sint Maarten"]
[null,null,"Swaziland",null,null,null,null,null,null,null,null,"Overseas Asset Management (Cayman) Ltd [1397841]",null,null,"Slovakia"]
[null,null,"Sweden",null,null,null,null,null,null,null,null,"PA Corporate Services Limited [1398876]",null,null,"Slovenia"]
[null,null,"Switzerland",null,null,null,null,null,null,null,null,"Paget-Brown Trust Company Ltd [1399812]",null,null,"Solomon Islands"]
[null,null,"Syrian Arab Republic",null,null,null,null,null,null,null,null,"Paradigm Governance Partners Limited [2660103]",null,null,"Somalia"]
[null,null,"Taiwan, Province of China",null,null,null,null,null,null,null,null,"Portcullis TrustNet (Cayman) Ltd. [1426095]",null,null,"South Africa"]
[null,null,"Tajikistan",null,null,null,null,null,null,null,null,"Praxis Fund Services (Cayman) Limited [2713712]",null,null,"South Georgia and the South Sandwich Islands"]
[null,null,"Tanzania, United Republic of",null,null,null,null,null,null,null,null,"Premier Fiduciary Services (Cayman) Ltd. [1881946]",null,null,"South Sudan"]
[null,null,"Thailand",null,null,null,null,null,null,null,null,"Premier Group Insurance Brokers Limited [1792173]",null,null,"Spain"]
[null,null,"Timor-Leste",null,null,null,null,null,null,null,null,"PricewaterhouseCoopers Services (Cayman Islands) Limited [2036204]",null,null,"Sri Lanka"]
[null,null,"Togo",null,null,null,null,null,null,null,null,"Quality Corporate Services Ltd. [2665154]",null,null,"Sudan"]
[null,null,"Tokelau",null,null,null,null,null,null,null,null,"Queensgate Bank and Trust Company Ltd. [1431986]",null,null,"Suriname"]
[null,null,"Tonga",null,null,null,null,null,null,null,null,"R&H Private Fund Services (Cayman) Ltd. [2113425]",null,null,"Svalbard and Jan Mayen"]
[null,null,"Trinidad and Tobago",null,null,null,null,null,null,null,null,"RBC Investor Services Cayman Limited [1438592]",null,null,"Swaziland"]
[null,null,"Tunisia",null,null,null,null,null,null,null,null,"RBC Royal Bank (Cayman) Limited [1860224]",null,null,"Sweden"]
[null,null,"Turkey",null,null,null,null,null,null,null,null,"Republic Bank (Cayman) Limited [1441473]",null,null,"Switzerland"]
[null,null,"Turkmenistan",null,null,null,null,null,null,null,null,"Rurik Trust Company (International) Limited [1470081]",null,null,"Syrian Arab Republic"]
[null,null,"Turks and Caicos Islands",null,null,null,null,null,null,null,null,"Sackville Bank Limited [2109726]",null,null,"Taiwan, Province of China"]
[null,null,"Tuvalu",null,null,null,null,null,null,null,null,"Schroder Cayman Bank and Trust Company Limited [1478363]",null,null,"Tajikistan"]
[null,null,"Uganda",null,null,null,null,null,null,null,null,"Scotiabank & Trust (Cayman) Ltd. [1479133]",null,null,"Tanzania, United Republic of"]
[null,null,"Ukraine",null,null,null,null,null,null,null,null,"SEI Investments Global (Cayman), Limited [1482364]",null,null,"Thailand"]
[null,null,"United Arab Emirates",null,null,null,null,null,null,null,null,"Sertus Incorporations (Cayman) Limited [2051361]",null,null,"Timor-Leste"]
[null,null,"United Kingdom",null,null,null,null,null,null,null,null,"SGGG Fund Services (Cayman) Inc. [1484932]",null,null,"Togo"]
[null,null,"United States",null,null,null,null,null,null,null,null,"SH Corporate Services Ltd [1484976]",null,null,"Tokelau"]
[null,null,"United States Minor Outlying Islands",null,null,null,null,null,null,null,null,"Sinclair Corporate Services Ltd. [2359195]",null,null,"Tonga"]
[null,null,"Uruguay",null,null,null,null,null,null,null,null,"Smeets Corporate Services Limited [1985476]",null,null,"Trinidad and Tobago"]
[null,null,"Uzbekistan",null,null,null,null,null,null,null,null,"SMP PARTNERS (CAYMAN) LIMITED [1468751]",null,null,"Tunisia"]
[null,null,"Vanuatu",null,null,null,null,null,null,null,null,"Solaris Corporate Services Ltd. [1795835]",null,null,"Turkey"]
[null,null,"Venezuela",null,null,null,null,null,null,null,null,"Sovereign (Cayman) Limited [1751934]",null,null,"Turkmenistan"]
[null,null,"Viet Nam",null,null,null,null,null,null,null,null,"SS&C (USA) Inc. [1076143]",null,null,"Turks and Caicos Islands"]
[null,null,"Virgin Islands, U.S.",null,null,null,null,null,null,null,null,"SS&C Fund Services (Cayman) Ltd. [1101811]",null,null,"Tuvalu"]
[null,null,"Wallis and Futuna",null,null,null,null,null,null,null,null,"St. George's International Limited [1070366]",null,null,"Uganda"]
[null,null,"Western Sahara",null,null,null,null,null,null,null,null,"State Street (Cayman) Trust, Limited [1205341]",null,null,"Ukraine"]
[null,null,"Yemen",null,null,null,null,null,null,null,null,"STATE STREET CAYMAN TRUST COMPANY, LTD. [1499702]",null,null,"United Arab Emirates"]
[null,null,"Zambia",null,null,null,null,null,null,null,null,"Sterling Trust (Cayman) Limited [1076784]",null,null,"United Kingdom"]
[null,null,"Zimbabwe",null,null,null,null,null,null,null,null,"Stone Coast Fund Services Ltd. [1725091]",null,null,"United States : Alabama"]
[null,null,null,null,null,null,null,null,null,null,null,"Stuarts Corporate Services Ltd. [1509605]",null,null,"United States : Alaska"]
[null,null,null,null,null,null,null,null,null,null,null,"Summit Management Limited [1510342]",null,null,"United States : Arizona"]
[null,null,null,null,null,null,null,null,null,null,null,"Summit Trust (Cayman) Limited [1510412]",null,null,"United States : Arkansas"]
[null,null,null,null,null,null,null,null,null,null,null,"Swiss Financial Services (Cayman) Ltd. [1512910]",null,null,"United States : California"]
[null,null,null,null,null,null,null,null,null,null,null,"TDF Management Ltd. [1728801]",null,null,"United States : Colorado"]
[null,null,null,null,null,null,null,null,null,null,null,"The Harbour Trust Co. Ltd. [1525996]",null,null,"United States : Connecticut"]
[null,null,null,null,null,null,null,null,null,null,null,"The London & Amsterdam Trust Company Limited [1527013]",null,null,"United States : Delaware"]
[null,null,null,null,null,null,null,null,null,null,null,"The R & H Trust Co. Ltd. [1529065]",null,null,"United States : District of Columbia"]
[null,null,null,null,null,null,null,null,null,null,null,"The RDI Company Ltd [2622513]",null,null,"United States : Florida"]
[null,null,null,null,null,null,null,null,null,null,null,"TMF (Cayman) Ltd. [1162453]",null,null,"United States : Georgia"]
[null,null,null,null,null,null,null,null,null,null,null,"Transcontinental Fund Administration, Ltd. [1546311]",null,null,"United States : Hawaii"]
[null,null,null,null,null,null,null,null,null,null,null,"Transocean Corporate Services Limited [2127996]",null,null,"United States : Idaho"]
[null,null,null,null,null,null,null,null,null,null,null,"Tricor Services (Cayman Islands) Limited [2516824]",null,null,"United States : Illinois"]
[null,null,null,null,null,null,null,null,null,null,null,"Trident Trust Company (Cayman) Limited [1547976]",null,null,"United States : Indiana"]
[null,null,null,null,null,null,null,null,null,null,null,"Turners Management Ltd. [1550091]",null,null,"United States : Iowa"]
[null,null,null,null,null,null,null,null,null,null,null,"U.S. Bancorp Fund Services, LLC. [1550861]",null,null,"United States : Kansas"]
[null,null,null,null,null,null,null,null,null,null,null,"U.S. BANK GLOBAL FUND SERVICES (CAYMAN) LIMITED [1009606]",null,null,"United States : Kentucky"]
[null,null,null,null,null,null,null,null,null,null,null,"UBS Trustees (Cayman) Ltd. [1552143]",null,null,"United States : Louisiana"]
[null,null,null,null,null,null,null,null,null,null,null,"UCP Corporate Services Limited [2595821]",null,null,"United States : Maine"]
[null,null,null,null,null,null,null,null,null,null,null,"Uni-Investment International Corp. [1552880]",null,null,"United States : Maryland"]
[null,null,null,null,null,null,null,null,null,null,null,"Valora, Ltd. [2542223]",null,null,"United States : Massachusetts"]
[null,null,null,null,null,null,null,null,null,null,null,"VBT Bank & Trust, Ltd. [1557290]",null,null,"United States : Michigan"]
[null,null,null,null,null,null,null,null,null,null,null,"Virtus Partners Fund Services Cayman Ltd. [2553176]",null,null,"United States : Minnesota"]
[null,null,null,null,null,null,null,null,null,null,null,"Vistra (Cayman) Limited [1392204]",null,null,"United States : Mississippi"]
[null,null,null,null,null,null,null,null,null,null,null,"Viteos Fund Services Limited [1561136]",null,null,"United States : Missouri"]
[null,null,null,null,null,null,null,null,null,null,null,"Walkers (Cayman) [1768303]",null,null,"United States : Montana"]
[null,null,null,null,null,null,null,null,null,null,null,"Walkers Corporate Limited [2433152]",null,null,"United States : Nebraska"]
[null,null,null,null,null,null,null,null,null,null,null,"Walkers Fiduciary Limited [2434471]",null,null,"United States : Nevada"]
[null,null,null,null,null,null,null,null,null,null,null,"Wardour Management Services Limited [1564360]",null,null,"United States : New Hampshire"]
[null,null,null,null,null,null,null,null,null,null,null,"WB Corporate Services (Cayman) Ltd. [2558102]",null,null,"United States : New Jersey"]
[null,null,null,null,null,null,null,null,null,null,null,"Western International Trust Company Limited [1567646]",null,null,"United States : New Mexico"]
[null,null,null,null,null,null,null,null,null,null,null,"Winterbotham Corporate and Funds Services (Cayman) Limited [2581784]",null,null,"United States : New York"]
[null,null,null,null,null,null,null,null,null,null,null,"WNL Limited [1784296]",null,null,"United States : North Carolina"]
[null,null,null,null,null,null,null,null,null,null,null,"Zedra Trust Company (Cayman) Limited [1051875]",null,null,"United States : North Dakota"]
[null,null,null,null,null,null,null,null,null,null,null,null,null,null,"United States : Ohio"]
[null,null,null,null,null,null,null,null,null,null,null,null,null,null,"United States : Oklahoma"]
[null,null,null,null,null,null,null,null,null,null,null,null,null,null,"United States : Oregon"]
[null,null,null,null,null,null,null,null,null,null,null,null,null,null,"United States : Pennsylvania"]
[null,null,null,null,null,null,null,null,null,null,null,null,null,null,"United States : Rhode Island"]
[null,null,null,null,null,null,null,null,null,null,null,null,null,null,"United States : South Carolina"]
[null,null,null,null,null,null,null,null,null,null,null,null,null,null,"United States : South Dakota"]
[null,null,null,null,null,null,null,null,null,null,null,null,null,null,"United States : Tennessee"]
[null,null,null,null,null,null,null,null,null,null,null,null,null,null,"United States : Texas"]
[null,null,null,null,null,null,null,null,null,null,null,null,null,null,"United States : Utah"]
[null,null,null,null,null,null,null,null,null,null,null,null,null,null,"United States : Vermont"]
[null,null,null,null,null,null,null,null,null,null,null,null,null,null,"United States : Virginia"]
[null,null,null,null,null,null,null,null,null,null,null,null,null,null,"United States : Washington"]
[null,null,null,null,null,null,null,null,null,null,null,null,null,null,"United States : West Virginia"]
[null,null,null,null,null,null,null,null,null,null,null,null,null,null,"United States : Wisconsin"]
[null,null,null,null,null,null,null,null,null,null,null,null,null,null,"United States : Wyoming"]
[null,null,null,null,null,null,null,null,null,null,null,null,null,null,"United States Minor Outlying Islands"]
[null,null,null,null,null,null,null,null,null,null,null,null,null,null,"Uruguay"]
[null,null,null,null,null,null,null,null,null,null,null,null,null,null,"Uzbekistan"]
[null,null,null,null,null,null,null,null,null,null,null,null,null,null,"Vanuatu"]
[null,null,null,null,null,null,null,null,null,null,null,null,null,null,"Venezuela"]
[null,null,null,null,null,null,null,null,null,null,null,null,null,null,"Viet Nam"]
[null,null,null,null,null,null,null,null,null,null,null,null,null,null,"Virgin Islands, U.S."]
[null,null,null,null,null,null,null,null,null,null,null,null,null,null,"Wallis and Futuna"]
[null,null,null,null,null,null,null,null,null,null,null,null,null,null,"Western Sahara"]
[null,null,null,null,null,null,null,null,null,null,null,null,null,null,"Yemen"]
[null,null,null,null,null,null,null,null,null,null,null,null,null,null,"Zambia"]
[null,null,null,null,null,null,null,null,null,null,null,null,null,null,"Zimbabwe"]

{"sheet":"results","index":3,"n_rows":28,"n_cols":13,"rows_kept":28,"cut":false,"hidden":true,"merged":[]}
["Feeder Fund row count:",1]
["Sub-Fund row count:",1,{"$f":"35+CountSubFunds-1","v":35}]
["Fund Operators row count:",1]
["Count yellow in Standing Data:",2]
["Count yellow in Financial Data:"]
["IncludedInThisReturn",{"$f":"COUNTIF(Q1.3.18ii:INDIRECT(\"'Standing Data'!C\"&results!C2),\"Yes\")","v":0}]
[]
["Validation - Standing Data",{"$f":"ValidationError1","v":"THE FORM IS INCOMPLETE. PLEASE COMPLETE ALL HIGHLIGHTED (YELLOW) CELLS."}]
["Validation - Financial Data",{"$f":"ValidationError2","v":"THE FORM IS INCOMPLETE. PLEASE COMPLETE ALL HIGHLIGHTED (YELLOW) CELLS."}]
["Combined Validation",{"$f":"IF(AND(ValidationError1=\"READY TO SUBMIT.\", ValidationError2=\"READY TO SUBMIT.\"),\"READY TO SUBMIT.\", \"THE FORM IS INCOMPLETE. PLEASE COMPLETE ALL HIGHLIGHTED (YELLOW) CELLS.\")","v":"THE FORM IS INCOMPLETE. PLEASE COMPLETE ALL HIGHLIGHTED (YELLOW) CELLS."}]
[]
[]
["Q1.3.1",{"$f":"INDIRECT(A13)","v":0}]
["Q1.3.2",{"$f":"ISBLANK(INDIRECT(A14))","v":true}]
["Q1.3.3",{"$f":"ISBLANK(INDIRECT(A15))","v":true}]
["Standing Data'!B16",{"$f":"ISBLANK('Standing Data'!B16)","v":true}]
["Standing Data'!C16",{"$f":"ISBLANK('Standing Data'!C16)","v":true}]
["Q1.3.10",{"$f":"ISBLANK(INDIRECT(A18))","v":true}]
["Q1.3.11",{"$f":"ISBLANK(INDIRECT(A19))","v":true}]
["Q1.3",{"$f":"INDIRECT(A20)","v":0}]
["Q1.3.16",{"$f":"ISBLANK(INDIRECT(A21))","v":true}]
["Q1.3.17",{"$f":"ISBLANK(INDIRECT(A22))","v":true}]
["Standing Data'!B35",{"$f":"ISBLANK('Standing Data'!B35)","v":true}]
[]
[null,"Case 1","Case 2","Case 3","Case 4","Case 5","Case 6","Case 7","Case 8","Case 9","Case 10","Concat","Error Msg"]
["Q1.3.2",{"$f":"IF(AND(NOT(ISBLANK(Q1.3.2)),Q1.3.2<0),\" Number must be positive.\",\"\")","v":""},{"$f":"IF(AND(NOT(ISBLANK(Q1.3.2)),NOT(ISNUMBER(Q1.3.2))),\" Must be a number.\",\"\")","v":""},{"$f":"IF(AND(NOT(ISBLANK(Q1.3.2)),Q1.3.2<>CountFeederFunds),\" Check rows in 1.3.4.\",\"\")","v":""},null,null,null,null,null,null,null,{"$f":"B26&C26&D26&E26&F26&G26&H26&I26&J26&K26","v":""},{"$f":"IF(LEN(L26)<>0,\"Error : \"&L26,\"\")","v":""}]
["Q1.3.16",{"$f":"IF(AND(NOT(ISBLANK(Q1.3.16)),Q1.3.16<=0),\" Number must be positive.\",\"\")","v":""},{"$f":"IF(AND(NOT(ISBLANK(Q1.3.16)),NOT(ISNUMBER(Q1.3.16))),\" Must be a number.\",\"\")","v":""},null,null,null,null,null,null,null,null,{"$f":"B27&C27&D27&E27&F27&G27&H27&I27&J27&K27","v":""},{"$f":"IF(LEN(L27)<>0,\"Error : \"&L27,\"\")","v":""}]
["Q1.3.17",{"$f":"IF(AND(NOT(ISBLANK(Q1.3.17)),Q1.3.17<0),\" Number must be positive.\",\"\")","v":""},{"$f":"IF(AND(NOT(ISBLANK(Q1.3.17)),NOT(ISNUMBER(Q1.3.17))),\" Must be a number.\",\"\")","v":""},{"$f":"IF(AND(NOT(ISBLANK(Q1.3.17)),Q1.3.17<>IncludedInThisReturn),\" Check rows in 1.3.18 (Included…).\",\"\")","v":""},null,null,null,null,null,null,null,{"$f":"B28&C28&D28&E28&F28&G28&H28&I28&J28&K28","v":""},{"$f":"IF(LEN(L28)<>0,\"Error : \"&L28,\"\")","v":""}]